fUSD/lending_fUSD_20250414
["ID","MTS","AMOUNT","RATE_DAILY","PERIOD"]
[357932737,1744594240139,-441.68,0.00019726,2]
[357932738,1744594240149,-500.0,0.00019726,2]
[357932739,1744594240159,-500.0,0.00019726,2]
[357932740,1744594240169,-500.0,0.00019726,2]
[357932741,1744594240357,-500.0,0.00019726,2]
[357932742,1744594240380,-500.0,0.00019726,2]
[357932743,1744594240390,-500.0,0.00019726,2]
[357932744,1744594240400,-500.0,0.00019726,2]
[357932745,1744594240410,-629.33,0.00019726,2]
[357932746,1744594240419,-638.3250817,0.00019733,2]
[357932747,1744594240428,-1819.23952907,0.00019747,2]
[357932748,1744594240439,-3203.21673173,0.0001975,2]
[357932749,1744594240448,-3203.21673173,0.00019755,2]
[357932750,1744594240459,-719.68320728,0.00019755,2]
[357932751,1744594240468,-1983.43400744,0.00019761,2]
[357932752,1744594240478,-3203.21673173,0.00019761,2]
[357932753,1744594240488,-719.68320728,0.00019769,2]
[357932754,1744594240498,-1188.52687805,0.00019778,2]
[357932755,1744594240508,-1983.43400744,0.00019779,2]
[357932756,1744594240518,-948.62568005,0.00019788,2]
[357932757,1744594240527,-948.62568005,0.0001979,2]
[357932758,1744594240537,-1188.52687805,0.00019792,2]
[357932759,1744594240546,-226.6896,0.000198,2]
[357932761,1744594240555,-1075.08513262,0.000198,2]
[357932763,1744594240565,-1075.08513253,0.00019811,2]
[357932764,1744594240575,-1075.08513253,0.00019822,2]
[357932765,1744594240584,-1075.08513253,0.00019833,2]
[357932766,1744594240594,-1075.08513253,0.00019844,2]
[357932767,1744594240603,-1075.08513253,0.00019856,2]
[357932768,1744594240613,-1075.08513253,0.00019867,2]
[357932769,1744594240622,-1075.08513253,0.00019878,2]
[357932770,1744594240631,-1075.08513253,0.00019889,2]
[357932771,1744594240642,-2500.0,0.000199,2]
[357932772,1744594240652,-1000.0,0.000199,2]
[357932773,1744594240663,-189.29328165,0.000199,2]
[357932774,1744594240672,-775.604,0.000199,2]
[357932775,1744594240684,-194.764924,0.000199,2]
[357932776,1744594240693,-304.15,0.000199,2]
[357932777,1744594240704,-5000.0,0.000199,2]
[357932778,1744594240714,-3142.87197339,0.000199,2]
[357932779,1744594240724,-1075.08513253,0.000199,2]
[357932780,1744594240735,-174.47427324,0.000199,2]
[357932781,1744594240745,-189.99018858,0.000199,2]
[357932782,1744594240755,-669.50083008,0.000199,2]
[357932783,1744594240764,-201.0,0.00019973,2]
[357932784,1744594240774,-500.0,0.00019973,2]
[357932785,1744594240785,-1003.0287005,0.00019986,2]
[357932786,1744594240794,-1222.9731245,0.00019986,2]
[357932787,1744594240805,-13990.7650423,0.00019986,2]
[357932788,1744594240819,-196.58525074,0.0001999,2]
[357932789,1744594240829,-791.0,0.00019999,2]
[357932790,1744594240838,-545.0,0.00019999,2]
[357932791,1744594240848,-1279.0,0.00019999,2]
[357932792,1744594240858,-1438.0,0.00019999,2]
[357932793,1744594240867,-907.0,0.00019999,2]
[357932794,1744594240877,-575.0,0.00019999,2]
[357932795,1744594240887,-4147.0,0.00019999,2]
[357932796,1744594240896,-1287.0,0.00019999,2]
[357932797,1744594240906,-3964.0,0.00019999,2]
[357932798,1744594240916,-153.558,0.00019999,2]
[357932799,1744594240926,-2047.0,0.00019999,2]
[357932800,1744594240937,-1328.036,0.00019999,2]
[357932801,1744594240947,-187.75974797,0.00019999,2]
[357932802,1744594240956,-159.34801249,0.00019999,2]
[357932803,1744594240966,-500.0,0.00019999,2]
[357932804,1744594240975,-171.78796038,0.00019999,2]
[357932805,1744594240985,-500.0,0.00019999,2]
[357932806,1744594240994,-500.0,0.00019999,2]
[357932807,1744594241003,-500.0,0.00019999,2]
[357932808,1744594241013,-500.0,0.00019999,2]
[357932809,1744594241022,-169.46809178,0.00019999,2]
[357932810,1744594241031,-500.0,0.00019999,2]
[357932811,1744594241040,-500.0,0.00019999,2]
[357932812,1744594241050,-500.0,0.00019999,2]
[357932813,1744594241059,-500.0,0.00019999,2]
[357932814,1744594241069,-500.0,0.00019999,2]
[357932815,1744594241078,-500.0,0.00019999,2]
[357932816,1744594241088,-500.0,0.00019999,2]
[357932817,1744594241097,-500.0,0.00019999,2]
[357932818,1744594241106,-250.0,0.00019999,2]
[357932819,1744594241115,-500.0,0.00019999,2]
[357932820,1744594241124,-594.05775362,0.00019999,2]
[357932821,1744594241133,-500.0,0.00019999,2]
[357932822,1744594241142,-530.0,0.0002,2]
[357932823,1744594241152,-29272.68934169,0.0002,2]
[357932824,1744594241161,-189846.76642156,0.0002,2]
[357932825,1744594241173,-47786.97869324,0.0002,2]
[357932826,1744594242702,-156.01,0.0002,2]
[357932838,1744594244864,-763.142274,0.0002,2]
[357932839,1744594245271,-1495.013329,0.0002,2]
[357932842,1744594245594,-188.49407657,0.0002,2]
[357932843,1744594245811,-379.12940536,0.0002,2]
[357932844,1744594246087,-724.99523338,0.0002,2]
[357932861,1744594251052,-175.95307138,0.00017847,2]
[357932862,1744594257797,-237.95688344,0.00017847,2]
[357932863,1744594273213,-250.0,0.00017847,2]
[357932864,1744594280660,-168.04109296,0.00017847,2]
[357932865,1744594290093,-154.48567649,0.00017847,2]
[357932866,1744594299463,-41.65327573,0.00017847,2]
[357932867,1744594299486,-108.34672427,0.00019082,2]
[357932868,1744594306077,-152.58,0.00019082,2]
[357932869,1744594308198,-76.80430773,0.00019082,2]
[357932870,1744594308222,-152.5294158,0.00019178,2]
[357932871,1744594496710,-173.174313,0.00019177,2]
[357932873,1744594547968,283.0,0.00017306,2]
[357932874,1744595216235,644.17273931,0.000221,30]
[357932875,1744595238488,-161.22,0.00018768,2]
[357932876,1744595241445,532.0,0.00017306,2]
[357932877,1744595367925,-239.58272024,0.0001876,2]
[357932878,1744595367948,-55.91503984,0.00018768,2]
[357932885,1744595431791,-1000.0,0.00018789,2]
[357932886,1744595431801,-76.48872924,0.00018827,2]
[357932887,1744595431813,-1923.51127076,0.00018827,2]
[357932888,1744595431822,-834.7,0.0001886,2]
[357932889,1744595431831,-300.0,0.00018895,2]
[357932890,1744595431840,-300.0,0.00018895,2]
[357932891,1744595431850,-23900.0,0.00018896,2]
[357932892,1744595431859,-500.0,0.00018937,2]
[357932893,1744595431868,-199.31,0.00018954,2]
[357932894,1744595431878,-10630.64971639,0.00019168,2]
[357932895,1744595431887,-200.0,0.0001917,2]
[357932896,1744595431896,-563.26770902,0.00019178,2]
[357932897,1744595431905,-517.33328372,0.00019178,2]
[357932898,1744595431914,-500.0,0.00019178,2]
[357932899,1744595431924,-412.47511448,0.00019178,2]
[357932900,1744595431935,-121.80022672,0.00019178,2]
[357932901,1744595431945,-154.34613802,0.00019178,2]
[357932902,1744595431954,-189.52278198,0.00019178,2]
[357932903,1744595431966,-431.31588792,0.00019178,2]
[357932904,1744595431975,-500.0,0.00019178,2]
[357932905,1744595431984,-153.23555662,0.00019178,2]
[357932914,1744595432204,-1661.85401572,0.00019178,2]
[357932917,1744595432231,-102.84598428,0.00019178,2]
[357932919,1744595432241,-583.98920818,0.00019178,2]
[357932921,1744595432250,-294.92795479,0.00019178,2]
[357932923,1744595432259,-270.2132507,0.00019178,2]
[357932925,1744595432270,-500.0,0.00019178,2]
[357932927,1744595432279,-500.0,0.00019178,2]
[357932929,1744595432289,-606.55706746,0.00019178,2]
[357932931,1744595432297,-78.84504001,0.00019178,2]
[357932934,1744595432313,-98.32574075,0.00019178,2]
[357932936,1744595432322,-500.0,0.00019178,2]
[357932938,1744595432331,-192.45662536,0.00019178,2]
[357932940,1744595432340,-265.22949705,0.00019178,2]
[357932942,1744595432349,-312.92429363,0.00019178,2]
[357932944,1744595432360,-2785.18570637,0.00019178,2]
[357932946,1744595432369,-375.40818003,0.00019178,2]
[357932948,1744595432378,-398.67665948,0.00019178,2]
[357932950,1744595432387,-160.9910781,0.00019178,2]
[357932952,1744595432396,-539.73419109,0.00019178,2]
[357932954,1744595432405,-524.1752435,0.00019178,2]
[357932956,1744595432414,-183.55653541,0.00019178,2]
[357932958,1744595432423,-500.0,0.00019178,2]
[357932960,1744595432432,-226.9344399,0.00019178,2]
[357932962,1744595432441,-204.04708167,0.00019178,2]
[357932964,1744595432453,-295.95291833,0.00019178,2]
[357932966,1744595432462,-162.24468543,0.00019178,2]
[357932968,1744595432471,-500.0,0.00019178,2]
[357932970,1744595432481,-259.5755191,0.00019178,2]
[357932972,1744595432490,-500.0,0.00019178,2]
[357932974,1744595432499,-500.0,0.00019178,2]
[357932976,1744595432508,-143.95615672,0.00019178,2]
[357932980,1744595432535,-356.04384328,0.00019178,2]
[357932982,1744595432544,-500.0,0.00019178,2]
[357932984,1744595432554,-125.08815095,0.00019178,2]
[357932987,1744595432578,-35.28382367,0.00019178,2]
[357932989,1744595432587,-166.06103502,0.00019178,2]
[357932991,1744595432596,-251.85185451,0.00019178,2]
[357932993,1744595432605,-36.18840616,0.00019178,2]
[357933139,1744595437918,-227.83971288,0.00019178,2]
[357933140,1744595437928,-98.61028712,0.00019178,2]
[357933141,1744595437940,-383.32818637,0.00019178,2]
[357933142,1744595437950,-10.36278841,0.00019178,2]
[357933143,1744595438064,-325.70186581,0.00019178,2]
[357933144,1744595438073,-119.9061703,0.00019178,2]
[357933145,1744595438084,-123.37495685,0.00019178,2]
[357933146,1744595438092,-363.85758193,0.00019178,2]
[357933147,1744595438101,-152.18350948,0.00019178,2]
[357933148,1744595438110,-503.9,0.00019178,2]
[357933149,1744595438118,-201.67423194,0.00019178,2]
[357933150,1744595438175,-290.00793947,0.00019178,2]
[357933151,1744595438185,-407.47548784,0.00019178,2]
[357933152,1744595438195,-193.08190809,0.00019178,2]
[357933153,1744595438208,-209.08567243,0.00019178,2]
[357933154,1744595438217,-583.08,0.00019178,2]
[357933155,1744595438226,-500.0,0.00019178,2]
[357933156,1744595438236,-225.11611949,0.00019178,2]
[357933157,1744595438246,-42.16797859,0.00019399,2]
[357933158,1744595438258,-167.61559531,0.00019399,2]
[357933159,1744595438267,-371.44825987,0.00019452,2]
[357933160,1744595438277,-209.03694318,0.00019452,2]
[357933161,1744595438287,-1764.7,0.00019452,2]
[357933162,1744595438296,-230.98302649,0.00019452,2]
[357933163,1744595438305,-500.0,0.00019452,2]
[357933164,1744595438315,-605.92141844,0.00019452,2]
[357933165,1744595438324,-841.9911929,0.00019452,2]
[357933166,1744595438338,-282.23840945,0.00019452,2]
[357933171,1744595440147,-1973.88039765,0.00019452,2]
[357933172,1744595440157,-500.0,0.00019452,2]
[357933173,1744595440166,-500.0,0.00019452,2]
[357933174,1744595440176,-500.0,0.00019452,2]
[357933175,1744595440186,-500.0,0.00019452,2]
[357933176,1744595440196,-500.0,0.00019452,2]
[357933177,1744595440208,-500.0,0.00019452,2]
[357933178,1744595440217,-500.0,0.00019452,2]
[357933179,1744595440227,-503.9,0.00019452,2]
[357933180,1744595440237,-583.08,0.00019452,2]
[357933181,1744595440247,-166.9,0.00019463,2]
[357933182,1744595440257,-4.63694131,0.00019692,2]
[357933183,1744595440341,-323.08248009,0.00019692,2]
[357933184,1744595440352,-1752.12068794,0.00019699,2]
[357933185,1744595440362,-781.72563296,0.000197,2]
[357933186,1744595440372,-446.95662579,0.000197,2]
[357933187,1744595440382,-341.50524478,0.00019725,2]
[357933188,1744595440392,-1764.7,0.00019726,2]
[357933189,1744595440401,-183.01627282,0.00019726,2]
[357933190,1744595440411,-3098.11,0.00019726,2]
[357933191,1744595440422,-500.0,0.00019726,2]
[357933192,1744595440432,-500.0,0.00019726,2]
[357933193,1744595440441,-505.341,0.00019726,2]
[357933194,1744595440451,-500.0,0.00019726,2]
[357933195,1744595440462,-500.0,0.00019726,2]
[357933196,1744595440475,-500.0,0.00019726,2]
[357933197,1744595440484,-500.0,0.00019726,2]
[357933198,1744595440493,-503.9,0.00019726,2]
[357933199,1744595440502,-583.08,0.00019726,2]
[357933200,1744595440512,-1752.12068794,0.0001974,2]
[357933201,1744595440522,-1752.12068794,0.00019741,2]
[357933202,1744595440532,-715.139722,0.00019742,2]
[357933203,1744595440542,-428.40222077,0.00019747,2]
[357933204,1744595440551,-428.40222077,0.00019775,2]
[357933206,1744595440564,-1000.0,0.000198,2]
[357933209,1744595440576,-1263.0639,0.000199,2]
[357933211,1744595440589,-228.6947,0.000199,2]
[357933212,1744595440602,-2500.0,0.000199,2]
[357933213,1744595440615,-150.1834,0.000199,2]
[357933215,1744595440626,-309.1365,0.000199,2]
[357933216,1744595440637,-481.40895152,0.000199,2]
[357933217,1744595440648,-200.98687712,0.000199,2]
[357933218,1744595440659,-787.864,0.000199,2]
[357933219,1744595440671,-197.71903532,0.000199,2]
[357933220,1744595440683,-1000.0,0.000199,2]
[357933221,1744595440695,-11069.89409706,0.000199,2]
[357933222,1744595440707,-5000.0,0.000199,2]
[357933223,1744595440719,-3552.10212282,0.000199,2]
[357933224,1744595440732,-190.57612442,0.000199,2]
[357933225,1744595440744,-199.50844688,0.000199,2]
[357933226,1744595440756,-176.60149122,0.000199,2]
[357933227,1744595440767,-168.50399888,0.000199,2]
[357933228,1744595440777,-201.0,0.00019973,2]
[357933229,1744595440787,-500.0,0.00019973,2]
[357933230,1744595440799,-21609.62382286,0.0001998,2]
[357933232,1744595443283,-0.00274459,0.0001998,2]
[357933233,1744595443295,-11975.75221394,0.0001998,2]
[357933234,1744595443306,-321764.35819546,0.0001998,2]
[357933246,1744595445061,-2862.32610858,0.0001998,2]
[357933247,1744595445102,-3.96521611,0.0001998,2]
[357933275,1744595446048,-2807.92204793,0.0001998,2]
[357933290,1744595462398,-150.0,0.0001998,2]
[357933291,1744595566367,163.66,0.0001999,3]
[357933292,1744595568295,1114.90299339,0.00019999,5]
[357933293,1744595693715,-582.85488438,0.00017369,2]
[357933294,1744596083540,500.94866769,0.0002,4]
[357933295,1744596148912,152.0,0.00023,120]
[357933296,1744596432528,384.07120899,0.00023,120]
[357933298,1744596576529,-320.28630789,0.00017369,2]
[357933299,1744596585752,1035.99,0.0002,4]
[357933302,1744596632114,-175.23880773,0.00017369,2]
[357933303,1744596632124,-200.0,0.00018896,2]
[357933304,1744596632133,-250.0,0.0001895,2]
[357933305,1744596632143,-251.43195555,0.00018994,2]
[357933306,1744596632152,-164.34,0.00018996,2]
[357933307,1744596632161,-246.23,0.00018996,2]
[357933308,1744596632171,-250.0,0.00019,2]
[357933309,1744596632181,-250.0,0.00019,2]
[357933310,1744596632190,-912.21,0.00019019,2]
[357933311,1744596632200,-300.0,0.00019094,2]
[357933312,1744596632209,-300.0,0.00019094,2]
[357933313,1744596632218,-4818.67965272,0.00019095,2]
[357933314,1744596632338,-8436.05034728,0.00019095,2]
[357933315,1744596632348,-250.0,0.00019106,2]
[357933316,1744596632358,-250.0,0.00019106,2]
[357933317,1744596632367,-250.0,0.00019106,2]
[357933318,1744596632377,-1544.11,0.00019178,2]
[357933319,1744596632387,-2729.88,0.00019178,2]
[357933320,1744596632398,-1015.54,0.00019178,2]
[357933321,1744596632407,-500.0,0.00019178,2]
[357933322,1744596632416,-500.0,0.00019178,2]
[357933324,1744596632426,-356.71193962,0.00019178,2]
[357933326,1744596632435,-273.66676641,0.00019178,2]
[357933328,1744596632444,-500.0,0.00019178,2]
[357933330,1744596632454,-509.36826344,0.00019178,2]
[357933332,1744596632464,-500.0,0.00019178,2]
[357933334,1744596632473,-510.2,0.00019178,2]
[357933336,1744596632483,-314.21385638,0.00019178,2]
[357933338,1744596632492,-4581.22,0.00019196,2]
[357933340,1744596632502,-157.3376805,0.00019399,2]
[357933342,1744596632511,-1544.11,0.00019452,2]
[357933344,1744596632521,-2729.88,0.00019452,2]
[357933346,1744596632530,-1015.54,0.00019452,2]
[357933348,1744596632540,-500.0,0.00019452,2]
[357933350,1744596632549,-500.0,0.00019452,2]
[357933352,1744596632559,-500.0,0.00019452,2]
[357933354,1744596632569,-500.0,0.00019452,2]
[357933356,1744596632580,-510.2,0.00019452,2]
[357933358,1744596632592,-1078.38,0.00019633,2]
[357933360,1744596632601,-1544.11,0.00019726,2]
[357933362,1744596632611,-2729.88,0.00019726,2]
[357933364,1744596632620,-1015.54,0.00019726,2]
[357933366,1744596632631,-327.65735476,0.00019726,2]
[357933368,1744596632640,-430.469156,0.00019726,2]
[357933566,1744596634815,-69.530844,0.00019726,2]
[357933569,1744596634839,-80.469156,0.00019726,2]
[357933692,1744596638367,-419.530844,0.00019726,2]
[357933693,1744596638379,-500.0,0.00019726,2]
[357933694,1744596638389,-510.2,0.00019726,2]
[357933695,1744596638399,-166.43,0.0001973,2]
[357933696,1744596638410,-153.558,0.00019736,2]
[357933697,1744596638419,-1404.22566125,0.00019736,2]
[357933698,1744596638432,-2559.77433875,0.00019736,2]
[357933699,1744596638442,-1000.0,0.000199,2]
[357933700,1744596638452,-630.291,0.000199,2]
[357933701,1744596638462,-2500.0,0.000199,2]
[357933702,1744596638471,-1750.74615767,0.000199,2]
[357933703,1744596638487,-560.47296851,0.000199,2]
[357933704,1744596638498,-888.18177382,0.000199,2]
[357933705,1744596638508,-492.75822618,0.000199,2]
[357933706,1744596638520,-180.65475542,0.000199,2]
[357933707,1744596638529,-199.10510992,0.00019973,2]
[357933713,1744596639192,-233.14,0.00019973,2]
[357933715,1744596640299,-67.75489008,0.00019973,2]
[357933716,1744596640308,-252.70511279,0.0001998,2]
[357933717,1744596640321,-424.04636776,0.0001998,2]
[357933718,1744596640333,-456.60249603,0.0001998,2]
[357933777,1744596645092,-1218.38253812,0.0001998,2]
[357933778,1744596645116,-323.38,0.0001998,2]
[357933780,1744596646041,-1415.44956061,0.0001998,2]
[357933781,1744596646052,-5047.51144408,0.0001998,2]
[357933782,1744596646064,-609.56206697,0.0001998,2]
[357933783,1744596646077,-2449.53962482,0.0001998,2]
[357933784,1744596646089,-1445.66177113,0.0001998,2]
[357933785,1744596646101,-913.658604,0.0001998,2]
[357933786,1744596646113,-1885.65006,0.0001998,2]
[357933787,1744596646204,-1006.75001,0.0001998,2]
[357933788,1744596646280,-760.25253912,0.0001998,2]
[357933789,1744596646359,-918.0,0.0001998,2]
[357933790,1744596646371,-1026.11962154,0.0001998,2]
[357933797,1744596692042,200.0,0.00019306,7]
[357933798,1744596722846,215.72,0.0001999,3]
[357933799,1744596755197,692.0,0.00023,120]
[357933800,1744596912898,804.75176185,0.00017192,2]
[357933801,1744596912928,221.58823815,0.00017192,2]
[357933802,1744597180223,559.3,0.00017192,2]
[357933803,1744597474152,-202.0,0.0001863,2]
[357933804,1744597475045,202.0,0.0001771,2]
[357933805,1744597475078,-202.0,0.0001794,2]
[357933806,1744597476020,-178.85213979,0.0001817,2]
[357933807,1744597492803,-23.14786021,0.0001817,2]
[357933808,1744597492827,-167.64213979,0.000184,2]
[357933811,1744597740903,200.0,0.00018699,7]
[357933820,1744597836881,-237.616385,0.00018308,2]
[357933822,1744597836891,-34.35786021,0.000184,2]
[357933824,1744597836901,-165.76,0.00018722,2]
[357933826,1744597836911,-1000.0,0.00018747,2]
[357933828,1744597836921,-290.01,0.00018749,2]
[357933830,1744597836931,-202.0,0.0001886,2]
[357933831,1744597836941,-250.0,0.00019,2]
[357933832,1744597836951,-245.01971803,0.00019,2]
[357933833,1744597836965,-4.98028197,0.00019,2]
[357933834,1744597836976,-202.0,0.0001909,2]
[357933835,1744597836986,-224.07915282,0.00019167,2]
[357933836,1744597836996,-300.0,0.00019167,2]
[357933837,1744597837007,-300.0,0.00019167,2]
[357933838,1744597837017,-854.87556521,0.00019168,2]
[357933839,1744597837028,-393.55179488,0.00019168,2]
[357933840,1744597837045,-1111.97483759,0.00019168,2]
[357933841,1744597837056,-15494.70293591,0.00019168,2]
[357933842,1744597837068,-13529.32880902,0.00019168,2]
[357933843,1744597837106,-2349.13104373,0.00019168,2]
[357933844,1744597837116,-178.10458876,0.00019168,2]
[357933845,1744597837125,-500.0,0.00019178,2]
[357933846,1744597837136,-502.40095739,0.00019178,2]
[357933847,1744597837146,-500.0,0.00019178,2]
[357933848,1744597837155,-500.0,0.00019178,2]
[357933849,1744597837164,-527.98123519,0.00019178,2]
[357933850,1744597837174,-888.6,0.00019178,2]
[357933851,1744597837183,-508.95791249,0.00019178,2]
[357933852,1744597837193,-609.3444259,0.00019178,2]
[357933853,1744597837202,-531.64293457,0.00019178,2]
[357933854,1744597837212,-521.03372966,0.00019178,2]
[357933855,1744597837425,-505.21483985,0.00019178,2]
[357933856,1744597837435,-523.29423836,0.00019178,2]
[357933857,1744597837444,-487.5762825,0.00019178,2]
[357933858,1744597837457,-34.05201406,0.00019178,2]
[357933859,1744597837467,-516.17938674,0.00019178,2]
[357933860,1744597837476,-80.01689958,0.00019178,2]
[357933861,1744597837488,-504.72044714,0.00019178,2]
[357933862,1744597837498,-532.60933839,0.00019178,2]
[357933863,1744597837508,-526.59734955,0.00019178,2]
[357933864,1744597837519,-524.75483039,0.00019178,2]
[357933865,1744597837528,-508.62308303,0.00019178,2]
[357933866,1744597837538,-579.11,0.00019178,2]
[357933867,1744597837548,-514.04105515,0.00019178,2]
[357933868,1744597837558,-509.46600162,0.00019178,2]
[357933869,1744597837568,-510.21234412,0.00019178,2]
[357933870,1744597837579,-507.7489623,0.00019178,2]
[357933871,1744597837589,-528.84932622,0.00019178,2]
[357933872,1744597837599,-518.42207387,0.00019178,2]
[357933873,1744597837609,-524.12973643,0.00019178,2]
[357933874,1744597837619,-520.98603989,0.00019178,2]
[357933875,1744597837628,-502.58817772,0.00019178,2]
[357933876,1744597837637,-529.61147633,0.00019178,2]
[357933877,1744597837648,-559.82455944,0.00019178,2]
[357933878,1744597837658,-514.08785367,0.00019178,2]
[357933879,1744597837668,-547.82384843,0.00019178,2]
[357933880,1744597837677,-510.91087374,0.00019178,2]
[357933881,1744597837686,-558.64626427,0.00019178,2]
[357933882,1744597837695,-509.80961871,0.00019178,2]
[357933883,1744597837705,-98.78443393,0.00019178,2]
[357933884,1744597837717,-433.12816044,0.00019178,2]
[357933885,1744597837726,-1108.06121298,0.00019178,2]
[357933886,1744597837739,-243.03878702,0.00019178,2]
[357933887,1744597837748,-518.17057729,0.00019178,2]
[357933888,1744597837758,-84.60088461,0.00019178,2]
[357933889,1744597837773,-484.11272163,0.00019178,2]
[357933890,1744597837783,-510.56941625,0.00019178,2]
[357933891,1744597837791,-442.58705694,0.00019178,2]
[357933892,1744597837803,-69.26226583,0.00019178,2]
[357933893,1744597837812,-513.6248946,0.00019178,2]
[357933894,1744597837822,-525.98512965,0.00019178,2]
[357933895,1744597837835,-500.0,0.00019178,2]
[357933896,1744597837844,-523.02709679,0.00019178,2]
[357933897,1744597837854,-525.58531272,0.00019178,2]
[357933898,1744597837863,-64.78620295,0.00019178,2]
[357933899,1744597837874,-446.7833939,0.00019178,2]
[357933900,1744597837884,-516.89438306,0.00019178,2]
[357933901,1744597837893,-538.52258219,0.00019178,2]
[357933902,1744597837903,-517.98188673,0.00019178,2]
[357933903,1744597837912,-455.70123012,0.00019178,2]
[357933904,1744597837931,-59.64336149,0.00019178,2]
[357933905,1744597837942,-518.32754103,0.00019178,2]
[357933906,1744597837952,-521.80924832,0.00019178,2]
[357933907,1744597837963,-602.61328434,0.00019178,2]
[357933908,1744597837976,-505.85539621,0.00019178,2]
[357933909,1744597837986,-512.06406582,0.00019178,2]
[357933910,1744597837997,-204.92374474,0.00019178,2]
[357933911,1744597838287,-300.12435711,0.00019178,2]
[357933912,1744597838297,-169.65733448,0.00019178,2]
[357933913,1744597838309,-355.94702194,0.00019178,2]
[357933914,1744597838318,-144.05297806,0.00019178,2]
[357933915,1744597838396,-1867.53169754,0.00019178,2]
[357933916,1744597838406,-509.09182092,0.00019178,2]
[357933917,1744597838416,-538.49502635,0.00019178,2]
[357933918,1744597838427,-509.69591371,0.00019178,2]
[357933919,1744597838437,-510.61595313,0.00019178,2]
[357933920,1744597838447,-517.90201544,0.00019178,2]
[357933921,1744597838456,-624.72077378,0.00019178,2]
[357933922,1744597838466,-500.0,0.00019178,2]
[357933923,1744597838476,-530.25687831,0.00019178,2]
[357933924,1744597838486,-504.4413653,0.00019178,2]
[357933925,1744597838494,-501.9029749,0.00019178,2]
[357933926,1744597838503,-180.54518771,0.00019178,2]
[357933927,1744597838515,-337.27655948,0.00019178,2]
[357933928,1744597838524,-119.40254684,0.00019178,2]
[357933929,1744597838556,-380.59745316,0.00019178,2]
[357933930,1744597838567,-2388.64,0.00019178,2]
[357933931,1744597838577,-500.0,0.00019178,2]
[357933932,1744597838588,-500.0,0.00019178,2]
[357933933,1744597838598,-500.0,0.00019178,2]
[357933934,1744597838608,-500.0,0.00019178,2]
[357933935,1744597838618,-186.86550728,0.00019178,2]
[357933936,1744597838628,-1584.64236799,0.00019178,2]
[357933937,1744597838640,-10312.53667475,0.00019178,2]
[357933938,1744597838652,-5474.49699726,0.00019178,2]
[357933939,1744597838665,-5253.76383158,0.00019178,2]
[357933941,1744597838678,-1274.22848703,0.00019178,2]
[357933944,1744597838690,-1799.94722555,0.00019178,2]
[357933991,1744597840427,-1200.96862189,0.00019178,2]
[357933992,1744597840439,-2384.40045527,0.00019178,2]
[357933993,1744597840481,-7533.37859036,0.00019178,2]
[357933994,1744597840491,-250.0,0.00019289,2]
[357933995,1744597840502,-202.0,0.0001932,2]
[357933996,1744597840512,-157.3376805,0.00019399,2]
[357933997,1744597840522,-161.22,0.00019418,2]
[357933998,1744597840532,-621.27867926,0.00019452,2]
[357933999,1744597840542,-262.61131719,0.00019452,2]
[357934000,1744597840553,-888.6,0.00019452,2]
[357934001,1744597840565,-1351.1,0.00019452,2]
[357934002,1744597840577,-200.0,0.00019452,2]
[357934003,1744597840590,-500.0,0.00019452,2]
[357934004,1744597840601,-500.0,0.00019452,2]
[357934005,1744597840611,-500.0,0.00019452,2]
[357934006,1744597840622,-538.27661918,0.00019452,2]
[357934041,1744597843379,-1850.36338082,0.00019452,2]
[357934042,1744597843389,-500.0,0.00019452,2]
[357934043,1744597843399,-500.0,0.00019452,2]
[357934044,1744597843408,-500.0,0.00019452,2]
[357934045,1744597843418,-500.0,0.00019452,2]
[357934046,1744597843428,-1026.34,0.00019456,2]
[357934047,1744597843438,-202.0,0.0001956,2]